fUST/lending_fUST_20241123
["ID","MTS","AMOUNT","RATE_DAILY","PERIOD"]
[343126496,1732374638019,-500.0,0.00019997,2]
[343126497,1732374638029,-500.0,0.00019997,2]
[343126498,1732374638038,-500.0,0.00019997,2]
[343126499,1732374638048,-500.0,0.00019997,2]
[343126500,1732374638058,-500.0,0.00019997,2]
[343126501,1732374638068,-500.0,0.00019997,2]
[343126502,1732374638077,-427.19434082,0.00019997,2]
[343126503,1732374638087,-500.0,0.00019997,2]
[343126504,1732374638096,-328.67843914,0.00019997,2]
[343126505,1732374638108,-171.32156086,0.00019997,2]
[343126506,1732374638119,-500.0,0.00019997,2]
[343126507,1732374638128,-105.95452161,0.00019997,2]
[343126508,1732374638141,-394.04547839,0.00019997,2]
[343126509,1732374638150,-419.27503061,0.00019997,2]
[343126525,1732374639148,-80.72496939,0.00019997,2]
[343126526,1732374639159,-500.0,0.00019997,2]
[343126527,1732374639168,-500.0,0.00019997,2]
[343126528,1732374639178,-500.0,0.00019997,2]
[343126529,1732374639187,-500.0,0.00019997,2]
[343126530,1732374639197,-500.0,0.00019997,2]
[343126531,1732374639206,-301.6036152,0.00019997,2]
[343126532,1732374639218,-198.3963848,0.00019997,2]
[343126533,1732374639227,-500.0,0.00019997,2]
[343126534,1732374639236,-500.0,0.00019997,2]
[343126535,1732374639246,-500.0,0.00019997,2]
[343126536,1732374639256,-468.2853813,0.00019997,2]
[343126537,1732374639265,-500.0,0.00019997,2]
[343126538,1732374639274,-500.0,0.00019997,2]
[343126539,1732374639284,-500.0,0.00019997,2]
[343126540,1732374639293,-500.0,0.00019997,2]
[343126541,1732374639302,-323.16191,0.00019997,2]
[343126542,1732374639311,-500.0,0.00019997,2]
[343126543,1732374639320,-500.0,0.00019997,2]
[343126544,1732374639330,-173.41140492,0.00019997,2]
[343126545,1732374639347,-500.0,0.00019997,2]
[343126546,1732374639357,-500.0,0.00019997,2]
[343126547,1732374639367,-500.0,0.00019997,2]
[343126548,1732374639377,-500.0,0.00019997,2]
[343126549,1732374639388,-500.0,0.00019997,2]
[343126550,1732374639398,-500.0,0.00019997,2]
[343126551,1732374639407,-500.0,0.00019997,2]
[343126552,1732374639416,-500.0,0.00019997,2]
[343126553,1732374639425,-500.0,0.00019997,2]
[343126554,1732374639437,-500.0,0.00019997,2]
[343126555,1732374639447,-500.0,0.00019997,2]
[343126556,1732374639456,-500.0,0.00019997,2]
[343126557,1732374639465,-500.0,0.00019997,2]
[343126558,1732374639475,-500.0,0.00019997,2]
[343126559,1732374639484,-500.0,0.00019997,2]
[343126560,1732374639493,-500.0,0.00019997,2]
[343126561,1732374639506,-500.0,0.00019997,2]
[343126562,1732374639515,-500.0,0.00019997,2]
[343126563,1732374639525,-500.0,0.00019997,2]
[343126564,1732374639534,-500.0,0.00019997,2]
[343126565,1732374639544,-500.0,0.00019997,2]
[343126566,1732374639553,-493.1233295,0.00019997,2]
[343126567,1732374639563,-500.0,0.00019997,2]
[343126568,1732374639572,-500.0,0.00019997,2]
[343126569,1732374639582,-500.0,0.00019997,2]
[343126570,1732374639592,-500.0,0.00019997,2]
[343126571,1732374639601,-500.0,0.00019997,2]
[343126572,1732374639610,-500.0,0.00019997,2]
[343126573,1732374639619,-500.0,0.00019997,2]
[343126574,1732374639629,-500.0,0.00019997,2]
[343126575,1732374639639,-500.0,0.00019997,2]
[343126576,1732374639648,-500.0,0.00019997,2]
[343126577,1732374639658,-500.0,0.00019997,2]
[343126578,1732374639667,-500.0,0.00019997,2]
[343126579,1732374639677,-350.0,0.00019997,2]
[343126580,1732374639687,-500.0,0.00019997,2]
[343126581,1732374639697,-500.0,0.00019997,2]
[343126582,1732374639707,-500.0,0.00019997,2]
[343126583,1732374639717,-186.37914938,0.00019997,2]
[343126584,1732374639728,-500.0,0.00019997,2]
[343126585,1732374639737,-500.0,0.00019997,2]
[343126586,1732374639750,-500.0,0.00019997,2]
[343126587,1732374639760,-500.0,0.00019997,2]
[343126588,1732374639769,-500.0,0.00019997,2]
[343126589,1732374639779,-500.0,0.00019997,2]
[343126590,1732374639789,-500.0,0.00019997,2]
[343126591,1732374639799,-500.0,0.00019997,2]
[343126592,1732374639809,-500.0,0.00019997,2]
[343126593,1732374639819,-500.0,0.00019997,2]
[343126594,1732374639828,-500.0,0.00019997,2]
[343126595,1732374639838,-500.0,0.00019997,2]
[343126596,1732374639847,-500.0,0.00019997,2]
[343126597,1732374639857,-500.0,0.00019997,2]
[343126598,1732374639866,-500.0,0.00019997,2]
[343126599,1732374639876,-500.0,0.00019997,2]
[343126600,1732374639886,-500.0,0.00019997,2]
[343126601,1732374639895,-500.0,0.00019997,2]
[343126602,1732374639904,-500.0,0.00019997,2]
[343126603,1732374639914,-500.0,0.00019997,2]
[343126604,1732374639924,-500.0,0.00019998,2]
[343126605,1732374639934,-500.0,0.00019998,2]
[343126606,1732374639944,-500.0,0.00019998,2]
[343126607,1732374639954,-500.0,0.00019998,2]
[343126608,1732374639964,-1292.96,0.00019998,2]
[343126609,1732374639974,-500.0,0.00019998,2]
[343126610,1732374639984,-500.0,0.00019998,2]
[343126611,1732374639993,-866.31,0.00019998,2]
[343126612,1732374640008,-605.26222616,0.00019998,2]
[343126613,1732374640020,-900.83,0.00019998,2]
[343126614,1732374640030,-500.0,0.00019998,2]
[343126615,1732374640039,-588.91,0.00019998,2]
[343126616,1732374640049,-500.0,0.00019998,2]
[343126617,1732374640059,-200.0,0.00019998,2]
[343126618,1732374640070,-500.0,0.00019998,2]
[343126619,1732374640080,-500.0,0.00019998,2]
[343126620,1732374640091,-256.10308401,0.00019998,2]
[343126621,1732374640100,-500.0,0.00019998,2]
[343126622,1732374640111,-500.0,0.00019998,2]
[343126623,1732374640120,-500.0,0.00019998,2]
[343126624,1732374640130,-756.3,0.00019998,2]
[343126625,1732374640140,-500.0,0.00019998,2]
[343126626,1732374640149,-500.0,0.00019998,2]
[343126627,1732374640159,-500.0,0.00019998,2]
[343126628,1732374640169,-599.9,0.00019998,2]
[343126629,1732374640179,-500.0,0.00019998,2]
[343126630,1732374640189,-500.0,0.00019998,2]
[343126631,1732374640199,-500.0,0.00019998,2]
[343126632,1732374640208,-1423.82,0.00019998,2]
[343126633,1732374640218,-919.07,0.00019998,2]
[343126634,1732374640227,-500.0,0.00019998,2]
[343126635,1732374640236,-882.73,0.00019998,2]
[343126636,1732374640247,-542.12,0.00019998,2]
[343126637,1732374640258,-500.0,0.00019998,2]
[343126638,1732374640268,-839.51,0.00019998,2]
[343126639,1732374640277,-564.68,0.00019998,2]
[343126640,1732374640287,-500.0,0.00019998,2]
[343126643,1732374640296,-500.0,0.00019998,2]
[343126644,1732374640306,-516.89,0.00019998,2]
[343126646,1732374640315,-500.0,0.00019998,2]
[343126648,1732374640325,-500.0,0.00019998,2]
[343126649,1732374640337,-500.0,0.00019998,2]
[343126650,1732374640348,-500.0,0.00019998,2]
[343126651,1732374640357,-1200.49,0.00019998,2]
[343126652,1732374640367,-530.03,0.00019998,2]
[343126653,1732374640376,-500.0,0.00019998,2]
[343126654,1732374640386,-500.0,0.00019998,2]
[343126655,1732374640396,-500.0,0.00019998,2]
[343126656,1732374640406,-310.56229183,0.00019998,2]
[343126657,1732374640419,-189.43770817,0.00019998,2]
[343126658,1732374640431,-330.68718173,0.00019998,2]
[343126659,1732374640447,-299.36492934,0.00019998,2]
[343126660,1732374640457,-307.47173795,0.00019998,2]
[343126662,1732374640467,-64.32333271,0.00019998,2]
[343126718,1732374644427,-500.0,0.00019996,2]
[343126720,1732374644438,-500.0,0.00019997,2]
[343126722,1732374644448,-636.85666729,0.00019998,2]
[343126725,1732374644457,-500.0,0.00019998,2]
[343126727,1732374644468,-500.0,0.00019998,2]
[343126729,1732374644477,-500.0,0.00019998,2]
[343126731,1732374644486,-500.0,0.00019998,2]
[343126733,1732374644500,-500.0,0.00019998,2]
[343126735,1732374644513,-500.0,0.00019998,2]
[343126736,1732374644528,-805.35,0.00019998,2]
[343126739,1732374644539,-500.0,0.00019998,2]
[343126741,1732374644549,-500.0,0.00019998,2]
[343126743,1732374644558,-702.98,0.00019998,2]
[343126745,1732374644568,-457.83778405,0.00019998,2]
[343126747,1732374644580,-42.16221595,0.00019998,2]
[343126749,1732374644589,-500.0,0.00019998,2]
[343126751,1732374644598,-500.0,0.00019998,2]
[343126753,1732374644608,-530.74,0.00019998,2]
[343126755,1732374644617,-500.0,0.00019998,2]
[343126757,1732374644628,-500.0,0.00019998,2]
[343126759,1732374644638,-500.0,0.00019998,2]
[343126761,1732374644647,-486.3621777,0.00019998,2]
[343126763,1732374644659,-525.56629383,0.00019998,2]
[343126765,1732374644668,-309.41753655,0.00019998,2]
[343126767,1732374644677,-506.54,0.00019998,2]
[343126769,1732374644687,-500.0,0.00019998,2]
[343126770,1732374644697,-282.92883616,0.00019998,2]
[343126772,1732374644706,-500.0,0.00019998,2]
[343126774,1732374644716,-500.0,0.00019998,2]
[343126776,1732374644726,-500.0,0.00019998,2]
[343126778,1732374644735,-529.24,0.00019998,2]
[343126780,1732374644746,-504.27,0.00019998,2]
[343126782,1732374644759,-500.0,0.00019998,2]
[343126784,1732374644769,-763.16,0.00019998,2]
[343126786,1732374644779,-3725.55,0.00019998,2]
[343126788,1732374644788,-1363.25,0.00019998,2]
[343126790,1732374644797,-500.0,0.00019998,2]
[343126792,1732374644807,-500.0,0.00019998,2]
[343126794,1732374644817,-623.97,0.00019998,2]
[343126796,1732374644826,-831.32,0.00019998,2]
[343126798,1732374644835,-500.0,0.00019998,2]
[343126800,1732374644844,-2196.85,0.00019998,2]
[343126802,1732374644853,-500.0,0.00019998,2]
[343126804,1732374644863,-500.0,0.00019998,2]
[343126806,1732374644872,-1338.54,0.00019998,2]
[343126808,1732374644881,-772.07,0.00019998,2]
[343126810,1732374644891,-500.0,0.00019998,2]
[343126812,1732374644900,-500.0,0.00019998,2]
[343126814,1732374644910,-1854.4,0.00019998,2]
[343126816,1732374644920,-504.74,0.00019998,2]
[343126818,1732374644929,-743.82,0.00019998,2]
[343126820,1732374644939,-500.0,0.00019998,2]
[343126822,1732374644948,-500.0,0.00019998,2]
[343126824,1732374644957,-500.0,0.00019998,2]
[343126826,1732374644967,-665.84,0.00019998,2]
[343126828,1732374644976,-541.59,0.00019998,2]
[343126830,1732374644986,-500.0,0.00019998,2]
[343126832,1732374644995,-405.09914158,0.00019998,2]
[343126834,1732374645008,-484.72224084,0.00019998,2]
[343126836,1732374645017,-184.2690791,0.00019998,2]
[343126838,1732374645026,-11883.1,0.00019998,2]
[343126840,1732374645036,-500.0,0.00019998,2]
[343126842,1732374645047,-500.0,0.00019998,2]
[343126844,1732374645058,-550.75,0.00019998,2]
[343126846,1732374645068,-3492.86,0.00019998,2]
[343126848,1732374645078,-500.0,0.00019998,2]
[343126850,1732374645088,-500.0,0.00019998,2]
[343126852,1732374645097,-500.0,0.00019998,2]
[343126854,1732374645107,-500.0,0.00019998,2]
[343126856,1732374645117,-912.61,0.00019998,2]
[343126857,1732374645126,-612.98,0.00019998,2]
[343126858,1732374645136,-500.0,0.00019998,2]
[343126859,1732374645145,-500.0,0.00019998,2]
[343126860,1732374645154,-500.0,0.00019998,2]
[343126861,1732374645163,-500.0,0.00019998,2]
[343126862,1732374645173,-500.0,0.00019998,2]
[343126863,1732374645182,-626.69,0.00019998,2]
[343126864,1732374645191,-500.0,0.00019998,2]
[343126865,1732374645200,-500.0,0.00019998,2]
[343126866,1732374645209,-500.0,0.00019998,2]
[343126867,1732374645218,-550.36,0.00019998,2]
[343126868,1732374645227,-500.0,0.00019998,2]
[343126869,1732374645237,-500.0,0.00019998,2]
[343126870,1732374645246,-500.0,0.00019998,2]
[343126871,1732374645257,-2020.42,0.00019998,2]
[343126872,1732374645266,-2282.44924612,0.0002,2]
[343126896,1732374646792,-35468.55075388,0.0002,2]
[343126897,1732374646803,-2159.299728,0.00020031,2]
[343126898,1732374646818,-2037.574376,0.00020031,2]
[343126899,1732374646833,-171.721438,0.00020031,2]
[343126900,1732374646848,-233.01590282,0.00020104,2]
[343126901,1732374646863,-251.741632,0.00020163,2]
[343126903,1732374646876,-500.0,0.0002027,2]
[343126904,1732374646891,-6575.11,0.0002027,2]
[343126905,1732374646904,-1627.77,0.0002027,2]
[343126906,1732374646917,-4864.52,0.0002027,2]
[343126907,1732374646930,-790.18,0.0002027,2]
[343126908,1732374646944,-1062.44,0.0002027,2]
[343126909,1732374646957,-500.0,0.0002027,2]
[343126910,1732374646969,-500.0,0.0002027,2]
[343126911,1732374646980,-28097.82,0.0002027,2]
[343126912,1732374646993,-314.36239435,0.0002027,2]
[343126913,1732374647006,-500.0,0.00020271,2]
[343126914,1732374647018,-565.5,0.00020271,2]
[343126915,1732374647032,-500.0,0.00020271,2]
[343126916,1732374647046,-924.31,0.00020271,2]
[343126917,1732374647059,-500.0,0.00020271,2]
[343126918,1732374647075,-1065.21,0.00020271,2]
[343126919,1732374647088,-500.0,0.00020271,2]
[343126920,1732374647100,-500.0,0.00020271,2]
[343126921,1732374647111,-590.32,0.00020271,2]
[343126922,1732374647124,-500.0,0.00020271,2]
[343126923,1732374647140,-500.0,0.00020271,2]
[343126924,1732374647154,-500.0,0.00020271,2]
[343126925,1732374647165,-772.55,0.00020271,2]
[343126926,1732374647176,-1429.5,0.00020271,2]
[343126927,1732374647189,-503.58,0.00020271,2]
[343126928,1732374647201,-794.5,0.00020271,2]
[343126929,1732374647212,-500.0,0.00020271,2]
[343126930,1732374647224,-500.0,0.00020271,2]
[343126931,1732374647235,-500.0,0.00020271,2]
[343126932,1732374647247,-500.0,0.00020271,2]
[343126933,1732374647261,-212.51755695,0.00020271,2]
[343126934,1732374647273,-500.0,0.00020272,2]
[343126935,1732374647285,-500.0,0.00020272,2]
[343126936,1732374647296,-500.0,0.00020272,2]
[343126937,1732374647309,-1292.96,0.00020272,2]
[343126938,1732374647321,-500.0,0.00020272,2]
[343126939,1732374647333,-500.0,0.00020272,2]
[343126940,1732374647346,-866.31,0.00020272,2]
[343126941,1732374647360,-900.83,0.00020272,2]
[343126942,1732374647372,-500.0,0.00020272,2]
[343126943,1732374647384,-588.91,0.00020272,2]
[343126944,1732374647396,-500.0,0.00020272,2]
[343126945,1732374647408,-200.0,0.00020272,2]
[343126946,1732374647419,-527.77649146,0.00020272,2]
[343126947,1732374647432,-533.5062293,0.00020272,2]
[343126948,1732374647444,-500.0,0.00020272,2]
[343126949,1732374647455,-500.0,0.00020272,2]
[343126950,1732374647467,-500.0,0.00020272,2]
[343126951,1732374647478,-756.3,0.00020272,2]
[343126952,1732374647490,-500.0,0.00020272,2]
[343126953,1732374647505,-599.9,0.00020272,2]
[343126954,1732374647518,-500.0,0.00020272,2]
[343126955,1732374647530,-1423.82,0.00020272,2]
[343126956,1732374647542,-919.07,0.00020272,2]
[343126957,1732374647555,-500.0,0.00020272,2]
[343126958,1732374647567,-882.73,0.00020272,2]
[343126959,1732374647579,-542.12,0.00020272,2]
[343126960,1732374647592,-500.0,0.00020272,2]
[343126961,1732374647605,-839.51,0.00020272,2]
[343126962,1732374647616,-564.68,0.00020272,2]
[343126963,1732374647628,-500.0,0.00020272,2]
[343126964,1732374647640,-516.89,0.00020272,2]
[343126965,1732374647652,-500.0,0.00020272,2]
[343126966,1732374647664,-500.0,0.00020272,2]
[343126967,1732374647675,-500.0,0.00020272,2]
[343126968,1732374647688,-1200.49,0.00020272,2]
[343126969,1732374647699,-530.03,0.00020272,2]
[343126970,1732374647710,-500.0,0.00020272,2]
[343126971,1732374647722,-173.61284345,0.00020272,2]
[343126972,1732374647734,-701.18,0.00020272,2]
[343126973,1732374647745,-500.0,0.00020272,2]
[343126974,1732374647756,-500.0,0.00020272,2]
[343126975,1732374647765,-500.0,0.00020272,2]
[343126976,1732374647775,-500.0,0.00020272,2]
[343126977,1732374647785,-805.35,0.00020272,2]
[343126978,1732374647795,-500.0,0.00020272,2]
[343126979,1732374647805,-500.0,0.00020272,2]
[343126980,1732374647815,-702.98,0.00020272,2]
[343126981,1732374647978,-500.0,0.00020272,2]
[343126982,1732374647993,-500.0,0.00020272,2]
[343126983,1732374648005,-500.0,0.00020272,2]
[343126984,1732374648015,-530.74,0.00020272,2]
[343126985,1732374648026,-500.0,0.00020272,2]
[343126986,1732374648036,-500.0,0.00020272,2]
[343126987,1732374648047,-500.0,0.00020272,2]
[343126988,1732374648057,-506.54,0.00020272,2]
[343126989,1732374648067,-500.0,0.00020272,2]
[343126990,1732374648078,-500.0,0.00020272,2]
[343126991,1732374648087,-500.0,0.00020272,2]
[343126992,1732374648097,-500.0,0.00020272,2]
[343126993,1732374648108,-529.24,0.00020272,2]
[343126994,1732374648118,-504.27,0.00020272,2]
[343126995,1732374648128,-500.0,0.00020272,2]
[343126996,1732374648138,-763.16,0.00020272,2]
[343126997,1732374648149,-3725.55,0.00020272,2]
[343126998,1732374648159,-1363.25,0.00020272,2]
[343126999,1732374648169,-500.0,0.00020272,2]
[343127000,1732374648179,-500.0,0.00020272,2]
[343127001,1732374648190,-623.97,0.00020272,2]
[343127002,1732374648201,-831.32,0.00020272,2]
[343127003,1732374648211,-500.0,0.00020272,2]
[343127004,1732374648221,-2196.85,0.00020272,2]
[343127005,1732374648231,-500.0,0.00020272,2]
[343127006,1732374648241,-500.0,0.00020272,2]
[343127007,1732374648251,-1338.54,0.00020272,2]
[343127008,1732374648263,-772.07,0.00020272,2]
[343127009,1732374648273,-500.0,0.00020272,2]
[343127010,1732374648283,-416.00794698,0.00020272,2]
[343127011,1732374648293,-1854.4,0.00020272,2]
[343127012,1732374648303,-504.74,0.00020272,2]
[343127013,1732374648313,-743.82,0.00020272,2]
[343127014,1732374648323,-501.88741906,0.00020272,2]
[343127015,1732374648333,-500.0,0.00020272,2]
[343127016,1732374648347,-500.0,0.00020272,2]
[343127017,1732374648358,-665.84,0.00020272,2]
[343127018,1732374648368,-541.59,0.00020272,2]
[343127019,1732374648378,-380.04085329,0.00020272,2]
[343127020,1732374648390,-11883.1,0.00020272,2]
[343127021,1732374648400,-500.0,0.00020272,2]
[343127022,1732374648410,-500.0,0.00020272,2]
[343127023,1732374648420,-550.75,0.00020272,2]
[343127024,1732374648432,-3492.86,0.00020272,2]
[343127025,1732374648443,-500.0,0.00020272,2]
[343127026,1732374648453,-500.0,0.00020272,2]
[343127027,1732374648463,-500.0,0.00020272,2]
[343127028,1732374648473,-500.0,0.00020272,2]
[343127029,1732374648483,-912.61,0.00020272,2]
[343127030,1732374648494,-612.98,0.00020272,2]
[343127031,1732374648505,-226.18326364,0.00020272,2]
[343127032,1732374648516,-500.0,0.00020272,2]
[343127033,1732374648526,-500.0,0.00020272,2]
[343127034,1732374648536,-500.0,0.00020272,2]
[343127035,1732374648546,-626.69,0.00020272,2]
[343127036,1732374648556,-500.0,0.00020272,2]
[343127037,1732374648566,-500.0,0.00020272,2]
[343127038,1732374648576,-550.36,0.00020272,2]
[343127039,1732374648586,-500.0,0.00020272,2]
[343127040,1732374648596,-606.72792349,0.00020272,2]
[343127041,1732374648607,-500.0,0.00020272,2]
[343127042,1732374648617,-500.0,0.00020272,2]
[343127043,1732374648627,-2020.42,0.00020272,2]
[343127044,1732374648636,-233.01590282,0.00020309,2]
[343127045,1732374648646,-233.01590282,0.00020515,2]
[343127046,1732374648656,-754.812936,0.00020521,2]
[343127047,1732374648667,-1000.0,0.00020521,2]
[343127048,1732374648676,-1000.0,0.00020521,2]
[343127049,1732374648687,-1000.0,0.00020521,2]
[343127050,1732374648697,-500.0,0.00020544,2]
[343127051,1732374648708,-6575.11,0.00020544,2]
[343127052,1732374648718,-1627.77,0.00020544,2]
[343127053,1732374648728,-4864.52,0.00020544,2]
[343127054,1732374648738,-790.18,0.00020544,2]
[343127055,1732374648748,-1062.44,0.00020544,2]
[343127056,1732374648760,-500.0,0.00020544,2]
[343127057,1732374648770,-500.0,0.00020544,2]
[343127058,1732374648781,-28097.82,0.00020544,2]
[343127059,1732374648791,-500.0,0.00020545,2]
[343127060,1732374648801,-565.5,0.00020545,2]
[343127061,1732374648811,-500.0,0.00020545,2]
[343127062,1732374648821,-924.31,0.00020545,2]
[343127063,1732374648831,-500.0,0.00020545,2]
[343127064,1732374648840,-1065.21,0.00020545,2]
[343127065,1732374648849,-500.0,0.00020545,2]
[343127066,1732374648859,-500.0,0.00020545,2]
[343127067,1732374648869,-590.32,0.00020545,2]
[343127068,1732374648880,-500.0,0.00020545,2]
[343127069,1732374648890,-500.0,0.00020545,2]
[343127070,1732374648901,-500.0,0.00020545,2]
[343127071,1732374648911,-772.55,0.00020545,2]
[343127072,1732374648920,-1429.5,0.00020545,2]
[343127073,1732374648930,-503.58,0.00020545,2]
[343127074,1732374648940,-794.5,0.00020545,2]
[343127075,1732374648949,-500.0,0.00020545,2]
[343127076,1732374648959,-378.25149183,0.00020546,2]
[343127077,1732374648969,-500.0,0.00020546,2]
[343127078,1732374648979,-500.0,0.00020546,2]
[343127079,1732374648990,-1292.96,0.00020546,2]
[343127080,1732374649000,-500.0,0.00020546,2]
[343127081,1732374649011,-500.0,0.00020546,2]
[343127082,1732374649021,-866.31,0.00020546,2]
[343127083,1732374649031,-900.83,0.00020546,2]
[343127084,1732374649041,-500.0,0.00020546,2]
[343127085,1732374649052,-588.91,0.00020546,2]
[343127086,1732374649062,-500.0,0.00020546,2]
[343127087,1732374649072,-200.0,0.00020546,2]
[343127088,1732374649082,-500.0,0.00020546,2]
[343127089,1732374649092,-500.0,0.00020546,2]
[343127090,1732374649102,-500.0,0.00020546,2]
[343127091,1732374649112,-756.3,0.00020546,2]
[343127092,1732374649122,-500.0,0.00020546,2]
[343127093,1732374649132,-599.9,0.00020546,2]
[343127094,1732374649142,-500.0,0.00020546,2]
[343127095,1732374649152,-1423.82,0.00020546,2]
[343127096,1732374649162,-919.07,0.00020546,2]
[343127097,1732374649172,-500.0,0.00020546,2]
[343127098,1732374649182,-882.73,0.00020546,2]
[343127099,1732374649192,-542.12,0.00020546,2]
[343127100,1732374649202,-500.0,0.00020546,2]
[343127101,1732374649212,-839.51,0.00020546,2]
[343127102,1732374649223,-564.68,0.00020546,2]
[343127103,1732374649233,-500.0,0.00020546,2]
[343127104,1732374649243,-516.89,0.00020546,2]
[343127105,1732374649253,-500.0,0.00020546,2]
[343127106,1732374649266,-500.0,0.00020546,2]
[343127107,1732374649276,-500.0,0.00020546,2]
[343127108,1732374649285,-1200.49,0.00020546,2]
[343127109,1732374649295,-530.03,0.00020546,2]
[343127110,1732374649305,-500.0,0.00020546,2]
[343127111,1732374649316,-701.18,0.00020546,2]
[343127112,1732374649326,-500.0,0.00020546,2]
[343127113,1732374649342,-500.0,0.00020546,2]
[343127114,1732374649352,-500.0,0.00020546,2]
[343127115,1732374649362,-500.0,0.00020546,2]
[343127116,1732374649373,-805.35,0.00020546,2]
[343127117,1732374649386,-500.0,0.00020546,2]
[343127118,1732374649397,-500.0,0.00020546,2]
[343127119,1732374649407,-702.98,0.00020546,2]
[343127120,1732374649417,-500.0,0.00020546,2]
[343127121,1732374649427,-500.0,0.00020546,2]
[343127122,1732374649439,-567.3191632,0.00020546,2]
[343127123,1732374649449,-530.74,0.00020546,2]
[343127124,1732374649459,-500.0,0.00020546,2]
[343127125,1732374649469,-500.0,0.00020546,2]
[343127126,1732374649480,-500.0,0.00020546,2]
[343127127,1732374649490,-506.54,0.00020546,2]
[343127128,1732374649499,-500.0,0.00020546,2]
[343127129,1732374649512,-500.0,0.00020546,2]
[343127130,1732374649522,-500.0,0.00020546,2]
[343127131,1732374649532,-529.24,0.00020546,2]
[343127132,1732374649542,-504.27,0.00020546,2]
[343127133,1732374649552,-500.0,0.00020546,2]
[343127134,1732374649562,-763.16,0.00020546,2]
[343127135,1732374649572,-3725.55,0.00020546,2]
[343127136,1732374649582,-500.0,0.00020546,2]
[343127137,1732374649591,-1363.25,0.00020546,2]
[343127138,1732374649601,-190.871795,0.00020546,2]
[343127139,1732374649611,-623.97,0.00020546,2]
[343127140,1732374649621,-831.32,0.00020546,2]
[343127141,1732374649631,-500.0,0.00020546,2]
[343127142,1732374649641,-2196.85,0.00020546,2]
[343127143,1732374649651,-500.0,0.00020546,2]
[343127144,1732374649661,-431.33179256,0.00020546,2]
[343127145,1732374649670,-1338.54,0.00020546,2]
[343127146,1732374649680,-772.07,0.00020546,2]
[343127147,1732374649690,-500.0,0.00020546,2]
[343127148,1732374649700,-1854.4,0.00020546,2]
[343127149,1732374649710,-504.74,0.00020546,2]
[343127150,1732374649719,-743.82,0.00020546,2]
[343127151,1732374649729,-500.0,0.00020546,2]
[343127152,1732374649739,-500.0,0.00020546,2]
[343127153,1732374649749,-665.84,0.00020546,2]
[343127154,1732374649761,-541.59,0.00020546,2]
[343127155,1732374649772,-500.0,0.00020546,2]
[343127156,1732374649781,-11883.1,0.00020546,2]
[343127157,1732374649791,-500.0,0.00020546,2]
[343127158,1732374649802,-550.75,0.00020546,2]
[343127159,1732374649812,-3492.86,0.00020546,2]
[343127160,1732374649822,-249.62186549,0.00020546,2]
[343127161,1732374649832,-247.47017703,0.00020546,2]
[343127162,1732374649841,-500.0,0.00020546,2]
[343127163,1732374649851,-500.0,0.00020546,2]